[Event "Early-Titled-Tuesday-Blitz-January-23-2024"]
[Site "Chess.com"]
[Date "2024.01.23"]
[Round "4"]
[White "Titus369"]
[Black "Grandelicious"]
[Result "0-1"]
[WhiteElo "2660"]
[BlackElo "2905"]
[TimeControl "180+1"]
[EndTime "8:38:53 PST"]
[Termination "Grandelicious won by resignation"]

1. e4 {[%clk 0:03:00.9]} 1... c5 {[%clk 0:02:58.2]} 2. Nf3 {[%clk 0:02:57.9]}
2... e6 {[%clk 0:02:58.8]} 3. d4 {[%clk 0:02:57.3]} 3... cxd4 {[%clk 0:02:59.7]}
4. Nxd4 {[%clk 0:02:56.4]} 4... a6 {[%clk 0:03:00.6]} 5. Nc3 {[%clk 0:02:56.5]}
5... b5 {[%clk 0:03:00.1]} 6. g3 {[%clk 0:02:56.7]} 6... Bb7 {[%clk 0:02:57]} 7.
Bg2 {[%clk 0:02:55.5]} 7... Nc6 {[%clk 0:02:57.4]} 8. O-O {[%clk 0:02:52.5]}
8... Nxd4 {[%clk 0:02:54.8]} 9. Qxd4 {[%clk 0:02:53.4]} 9... Ne7 {[%clk
0:02:48.7]} 10. a4 {[%clk 0:02:51.7]} 10... Nc6 {[%clk 0:02:43.5]} 11. Qd1
{[%clk 0:02:51.4]} 11... b4 {[%clk 0:02:41.2]} 12. Ne2 {[%clk 0:02:45.6]} 12...
Be7 {[%clk 0:02:37.7]} 13. f4 {[%clk 0:02:41.2]} 13... O-O {[%clk 0:02:37.1]}
14. Be3 {[%clk 0:02:38.3]} 14... Qc7 {[%clk 0:02:29.5]} 15. g4 {[%clk
0:02:36.1]} 15... Rac8 {[%clk 0:02:28.4]} 16. c4 {[%clk 0:02:30.2]} 16... bxc3
{[%clk 0:02:27.5]} 17. Nxc3 {[%clk 0:02:29]} 17... Nb4 {[%clk 0:02:25.4]} 18.
Kh1 {[%clk 0:02:24.1]} 18... d5 {[%clk 0:02:19.4]} 19. exd5 {[%clk 0:02:22.3]}
19... Rfd8 {[%clk 0:02:17.2]} 20. f5 {[%clk 0:02:17.7]} 20... Nxd5 {[%clk
0:02:02.6]} 21. Nxd5 {[%clk 0:02:16.1]} 21... Bxd5 {[%clk 0:02:03.1]} 22. Bxd5
{[%clk 0:02:15.1]} 22... Rxd5 {[%clk 0:02:04]} 23. Qf3 {[%clk 0:02:14.4]} 23...
Bf6 {[%clk 0:01:44.2]} 24. fxe6 {[%clk 0:02:09.6]} 24... fxe6 {[%clk 0:01:42.7]}
25. g5 {[%clk 0:01:47.2]} 25... Bxb2 {[%clk 0:01:25.1]} 26. Rab1 {[%clk
0:01:36.2]} 26... Rf5 {[%clk 0:01:16.3]} 27. Qg2 {[%clk 0:01:23.8]} 27... Rxf1+
{[%clk 0:01:07.2]} 28. Rxf1 {[%clk 0:01:14.8]} 28... Be5 {[%clk 0:01:01.6]} 29.
g6 {[%clk 0:00:50.8]} 29... hxg6 {[%clk 0:00:46.4]} 30. Qxg6 {[%clk 0:00:45]}
30... Qd7 {[%clk 0:00:42.7]} 31. Qe4 {[%clk 0:00:34.4]} 31... Qd5 {[%clk
0:00:27.5]} 32. Qxd5 {[%clk 0:00:33.3]} 32... exd5 {[%clk 0:00:28.4]} 33. Rd1
{[%clk 0:00:33.8]} 33... d4 {[%clk 0:00:29.1]} 34. Bd2 {[%clk 0:00:29.6]} 34...
Kf7 {[%clk 0:00:27.9]} 35. Kg2 {[%clk 0:00:29.5]} 35... Ke6 {[%clk 0:00:27.3]}
36. Kf3 {[%clk 0:00:29.7]} 36... Kd5 {[%clk 0:00:23.6]} 37. h4 {[%clk
0:00:29.7]} 37... Rf8+ {[%clk 0:00:22]} 38. Ke2 {[%clk 0:00:29]} 38... Ke4
{[%clk 0:00:22.1]} 39. Rg1 {[%clk 0:00:28.9]} 39... d3+ {[%clk 0:00:20.6]} 40.
Kd1 {[%clk 0:00:27.9]} 40... Bd4 {[%clk 0:00:19.8]} 41. Rg4+ {[%clk 0:00:27.5]}
41... Kd5 {[%clk 0:00:20.4]} 42. Bb4 {[%clk 0:00:23.3]} 42... Rf2 {[%clk
0:00:19.7]} 43. Ba5 {[%clk 0:00:20.1]} 43... Be3 {[%clk 0:00:19.9]} 44. Rg3
{[%clk 0:00:17.1]} 44... Ke4 {[%clk 0:00:17.2]} 45. Rxe3+ {[%clk 0:00:16.4]}
45... Kxe3 {[%clk 0:00:18]} 46. Bb6+ {[%clk 0:00:17.2]} 46... Kf3 {[%clk
0:00:18.5]} 47. Bxf2 {[%clk 0:00:18]} 47... Kxf2 {[%clk 0:00:19.4]} 48. Kd2
{[%clk 0:00:18.8]} 48... Kg3 {[%clk 0:00:18.9]} 49. Kxd3 {[%clk 0:00:19.7]}
49... Kxh4 {[%clk 0:00:19.5]} 50. Kc4 {[%clk 0:00:19.6]} 50... g5 {[%clk
0:00:20]} 51. Kc5 {[%clk 0:00:20.2]} 51... g4 {[%clk 0:00:20.7]} 52. Kb6 {[%clk
0:00:20.9]} 52... g3 {[%clk 0:00:21.6]} 53. Kxa6 {[%clk 0:00:21]} 53... g2
{[%clk 0:00:22.5]} 54. a5 {[%clk 0:00:21.8]} 54... g1=Q {[%clk 0:00:23.1]} 55.
Kb7 {[%clk 0:00:21.7]} 55... Qg2+ {[%clk 0:00:23.4]} 56. Kb6 {[%clk 0:00:21.9]}
56... Qf2+ {[%clk 0:00:23.7]} 57. Kb7 {[%clk 0:00:21.9]} 57... Qf3+ {[%clk
0:00:24.4]} 58. Ka7 {[%clk 0:00:22.1]} 58... Qe3+ {[%clk 0:00:24.9]} 59. Kb7
{[%clk 0:00:22.5]} 59... Qe4+ {[%clk 0:00:25.5]} 60. Kb8 {[%clk 0:00:21.6]}
60... Qe5+ {[%clk 0:00:25.1]} 61. Kb7 {[%clk 0:00:21.9]} 61... Qxa5 {[%clk
0:00:26]} 0-1

[Event "Early-Titled-Tuesday-Blitz-January-23-2024"]
[Site "Chess.com"]
[Date "2024.01.23"]
[Round "4"]
[White "Revan_2002"]
[Black "masnyszachistaaa"]
[Result "1-0"]
[WhiteElo "2362"]
[BlackElo "2517"]
[TimeControl "180+1"]
[EndTime "8:38:53 PST"]
[Termination "Revan_2002 won on time"]

1. d4 {[%clk 0:02:59.2]} 1... Nf6 {[%clk 0:02:59.1]} 2. c4 {[%clk 0:02:59.8]}
2... c5 {[%clk 0:02:59.4]} 3. e3 {[%clk 0:02:58.3]} 3... e6 {[%clk 0:02:53.8]}
4. Nf3 {[%clk 0:02:58.3]} 4... cxd4 {[%clk 0:02:46.2]} 5. exd4 {[%clk
0:02:59.2]} 5... d5 {[%clk 0:02:46.6]} 6. Nc3 {[%clk 0:02:59.9]} 6... Bb4 {[%clk
0:02:45.9]} 7. Bg5 {[%clk 0:02:57.5]} 7... O-O {[%clk 0:02:36.5]} 8. Bd3 {[%clk
0:02:58.1]} 8... dxc4 {[%clk 0:02:31]} 9. Bxc4 {[%clk 0:02:57.1]} 9... b6 {[%clk
0:02:27.1]} 10. O-O {[%clk 0:02:56.9]} 10... Bb7 {[%clk 0:02:23]} 11. Ne5 {[%clk
0:02:53.2]} 11... Nc6 {[%clk 0:02:11.9]} 12. Nf3 {[%clk 0:02:29]} 12... Be7
{[%clk 0:02:09.6]} 13. a3 {[%clk 0:02:18.2]} 13... Rc8 {[%clk 0:02:09]} 14. Ba2
{[%clk 0:02:11.9]} 14... Na5 {[%clk 0:02:08.5]} 15. Qd3 {[%clk 0:02:11.1]} 15...
Bxf3 {[%clk 0:01:56.9]} 16. Qxf3 {[%clk 0:02:12]} 16... Qxd4 {[%clk 0:01:55.9]}
17. Rad1 {[%clk 0:02:12.5]} 17... Qc5 {[%clk 0:01:43.5]} 18. Rfe1 {[%clk
0:02:08.2]} 18... Qc6 {[%clk 0:01:33.5]} 19. Qh3 {[%clk 0:01:57.9]} 19... Nc4
{[%clk 0:01:22.8]} 20. Bb1 {[%clk 0:01:53.7]} 20... g6 {[%clk 0:00:32.7]} 21.
Ne4 {[%clk 0:01:53.1]} 21... Nd5 {[%clk 0:00:20.8]} 22. Bxe7 {[%clk 0:01:15.7]}
22... Nxe7 {[%clk 0:00:21.7]} 23. Qh6 {[%clk 0:01:15.9]} 23... f6 {[%clk
0:00:19.3]} 24. Ba2 {[%clk 0:01:07.8]} 24... Nd5 {[%clk 0:00:11.3]} 25. Bxc4
{[%clk 0:00:59.9]} 25... Qxc4 {[%clk 0:00:10.8]} 26. Nd6 {[%clk 0:01:00.3]}
26... Qc7 {[%clk 0:00:06.4]} 27. Nxc8 {[%clk 0:00:59.2]} 27... Qxc8 {[%clk
0:00:07.3]} 28. Rxd5 {[%clk 0:00:37.1]} 28... exd5 {[%clk 0:00:04.4]} 29. Re7
{[%clk 0:00:37.7]} 29... Rf7 {[%clk 0:00:03.7]} 30. Rxf7 {[%clk 0:00:38.1]}
30... Kxf7 {[%clk 0:00:04.3]} 31. Qxh7+ {[%clk 0:00:38.8]} 31... Ke6 {[%clk
0:00:04.1]} 32. g3 {[%clk 0:00:29.3]} 32... Qc2 {[%clk 0:00:03]} 33. Qh3+ {[%clk
0:00:13.7]} 33... f5 {[%clk 0:00:02.4]} 34. Qh7 {[%clk 0:00:10.4]} 34... Qb1+
{[%clk 0:00:01.5]} 35. Kg2 {[%clk 0:00:10.4]} 35... Qe4+ {[%clk 0:00:02.2]} 36.
f3 {[%clk 0:00:08.8]} 36... Qc2+ {[%clk 0:00:01.9]} 37. Kh3 {[%clk 0:00:09.4]}
37... Kf6 {[%clk 0:00:02.4]} 38. Qd7 {[%clk 0:00:07.4]} 38... Qxb2 {[%clk
0:00:02.1]} 39. Qd6+ {[%clk 0:00:07.2]} 39... Kg5 {[%clk 0:00:01.2]} 40. Qf8
{[%clk 0:00:05]} 1-0

[Event "Early-Titled-Tuesday-Blitz-January-23-2024"]
[Site "Chess.com"]
[Date "2024.01.23"]
[Round "4"]
[White "Szczor"]
[Black "Aleksandar-Topalov"]
[Result "1-0"]
[WhiteElo "2589"]
[BlackElo "2337"]
[TimeControl "180+1"]
[EndTime "8:38:54 PST"]
[Termination "Szczor won by resignation"]

1. d4 {[%clk 0:03:00.9]} 1... Nf6 {[%clk 0:02:58.2]} 2. c4 {[%clk 0:03:00.9]}
2... c5 {[%clk 0:02:57]} 3. d5 {[%clk 0:03:00.7]} 3... d6 {[%clk 0:02:57.2]} 4.
Nc3 {[%clk 0:02:59.4]} 4... g6 {[%clk 0:02:57.2]} 5. h4 {[%clk 0:02:57.2]} 5...
h6 {[%clk 0:02:55.2]} 6. e4 {[%clk 0:02:53.6]} 6... Bg7 {[%clk 0:02:54.8]} 7. f3
{[%clk 0:02:53.7]} 7... e6 {[%clk 0:02:52.9]} 8. Be3 {[%clk 0:02:52.1]} 8... a6
{[%clk 0:02:52.4]} 9. Qd2 {[%clk 0:02:51.4]} 9... exd5 {[%clk 0:02:52]} 10. cxd5
{[%clk 0:02:51.3]} 10... b5 {[%clk 0:02:51.9]} 11. a4 {[%clk 0:02:45.7]} 11...
b4 {[%clk 0:02:50]} 12. Nd1 {[%clk 0:02:45.9]} 12... a5 {[%clk 0:02:46.4]} 13.
Nh3 {[%clk 0:02:37]} 13... h5 {[%clk 0:02:44.6]} 14. Ng5 {[%clk 0:02:37]} 14...
Nbd7 {[%clk 0:02:39.4]} 15. Bb5 {[%clk 0:02:34.9]} 15... O-O {[%clk 0:02:34.3]}
16. O-O {[%clk 0:02:32.2]} 16... Ne5 {[%clk 0:02:33.3]} 17. Nf2 {[%clk
0:02:27.7]} 17... Bd7 {[%clk 0:02:22.6]} 18. Be2 {[%clk 0:02:18.9]} 18... c4
{[%clk 0:02:06.8]} 19. Bd4 {[%clk 0:02:12.7]} 19... Rc8 {[%clk 0:02:06]} 20.
Rfc1 {[%clk 0:02:03.3]} 20... Qe8 {[%clk 0:01:49.3]} 21. Bb6 {[%clk 0:01:35.5]}
21... c3 {[%clk 0:01:33.5]} 22. bxc3 {[%clk 0:01:21.9]} 22... bxc3 {[%clk
0:01:32.7]} 23. Qe3 {[%clk 0:01:04.6]} 23... Bxa4 {[%clk 0:01:30.2]} 24. Bxa5
{[%clk 0:00:54.8]} 24... c2 {[%clk 0:01:27]} 25. Bb4 {[%clk 0:00:44]} 25... Qd7
{[%clk 0:01:19.8]} 26. Qb6 {[%clk 0:00:32.4]} 26... Rfd8 {[%clk 0:01:11.7]} 27.
Qxd6 {[%clk 0:00:23]} 27... Qxd6 {[%clk 0:01:07.2]} 28. Bxd6 {[%clk 0:00:23.9]}
28... Rxd6 {[%clk 0:01:03.4]} 29. Rxa4 {[%clk 0:00:24.5]} 29... Bh6 {[%clk
0:00:47.8]} 30. Ra2 {[%clk 0:00:22.4]} 30... Nh7 {[%clk 0:00:47]} 31. f4 {[%clk
0:00:20]} 31... Nd7 {[%clk 0:00:37.8]} 32. Raxc2 {[%clk 0:00:19.6]} 32... Rxc2
{[%clk 0:00:37.2]} 33. Rxc2 {[%clk 0:00:20.5]} 33... f6 {[%clk 0:00:35.8]} 34.
Ne6 {[%clk 0:00:20.8]} 34... Nhf8 {[%clk 0:00:32.1]} 35. Bc4 {[%clk 0:00:18.7]}
35... Nb6 {[%clk 0:00:28.3]} 36. Ba2 {[%clk 0:00:18.1]} 36... Nbd7 {[%clk
0:00:18.2]} 37. g3 {[%clk 0:00:17.5]} 37... Kf7 {[%clk 0:00:14]} 38. Rc7 {[%clk
0:00:16.7]} 38... Ke7 {[%clk 0:00:13.8]} 39. Nxf8 {[%clk 0:00:16.6]} 39... Kxf8
{[%clk 0:00:14.2]} 40. Nd3 {[%clk 0:00:15.6]} 40... Ke7 {[%clk 0:00:12.5]} 41.
e5 {[%clk 0:00:15.7]} 41... fxe5 {[%clk 0:00:12.1]} 42. fxe5 {[%clk 0:00:16.6]}
42... Ra6 {[%clk 0:00:08.3]} 43. Rxd7+ {[%clk 0:00:16.7]} 43... Kxd7 {[%clk
0:00:07.6]} 44. Nc5+ {[%clk 0:00:16.6]} 44... Ke7 {[%clk 0:00:07.9]} 45. Nxa6
{[%clk 0:00:17.5]} 45... Be3+ {[%clk 0:00:07.5]} 46. Kg2 {[%clk 0:00:17.7]}
46... Bd4 {[%clk 0:00:08]} 47. d6+ {[%clk 0:00:17.5]} 47... Kd7 {[%clk
0:00:07.3]} 48. Nb8+ {[%clk 0:00:17.9]} 48... Kc8 {[%clk 0:00:07]} 49. d7+
{[%clk 0:00:18.3]} 49... Kc7 {[%clk 0:00:07.3]} 50. d8=Q+ {[%clk 0:00:18.2]}
50... Kxd8 {[%clk 0:00:07]} 51. Nc6+ {[%clk 0:00:19.1]} 51... Kd7 {[%clk
0:00:06.4]} 52. Nxd4 {[%clk 0:00:20]} 1-0

[Event "Early-Titled-Tuesday-Blitz-January-23-2024"]
[Site "Chess.com"]
[Date "2024.01.23"]
[Round "4"]
[White "Rikikits"]
[Black "Denis_Makhnyov"]
[Result "0-1"]
[WhiteElo "2843"]
[BlackElo "3026"]
[TimeControl "180+1"]
[EndTime "8:38:56 PST"]
[Termination "Denis_Makhnyov won on time"]

1. d4 {[%clk 0:03:00.9]} 1... Nf6 {[%clk 0:02:59.9]} 2. c4 {[%clk 0:03:00.3]}
2... e6 {[%clk 0:03:00.6]} 3. Nf3 {[%clk 0:03:00.2]} 3... h6 {[%clk 0:02:58.1]}
4. e3 {[%clk 0:02:55]} 4... b6 {[%clk 0:02:57.5]} 5. Bd3 {[%clk 0:02:54]} 5...
Bb7 {[%clk 0:02:57.9]} 6. O-O {[%clk 0:02:54.1]} 6... d5 {[%clk 0:02:42.1]} 7.
Nbd2 {[%clk 0:02:49.8]} 7... Nbd7 {[%clk 0:02:41.6]} 8. b3 {[%clk 0:02:49.3]}
8... Be7 {[%clk 0:02:31.1]} 9. Bb2 {[%clk 0:02:48.5]} 9... O-O {[%clk
0:02:31.8]} 10. cxd5 {[%clk 0:02:44.4]} 10... exd5 {[%clk 0:02:31.2]} 11. Ne5
{[%clk 0:02:42.9]} 11... c5 {[%clk 0:02:30.6]} 12. Bf5 {[%clk 0:02:35.9]} 12...
Bd6 {[%clk 0:02:25.6]} 13. Rc1 {[%clk 0:02:25.3]} 13... Qe7 {[%clk 0:02:24.5]}
14. Nxd7 {[%clk 0:02:16.9]} 14... Nxd7 {[%clk 0:02:24.5]} 15. dxc5 {[%clk
0:02:14.6]} 15... bxc5 {[%clk 0:02:24.6]} 16. Nf3 {[%clk 0:01:47.5]} 16... Rad8
{[%clk 0:02:20.3]} 17. Re1 {[%clk 0:01:37.2]} 17... Rfe8 {[%clk 0:02:19.7]} 18.
Bh3 {[%clk 0:01:18]} 18... Nf6 {[%clk 0:02:15.8]} 19. g3 {[%clk 0:01:12.3]}
19... Ne4 {[%clk 0:01:45.7]} 20. Bg2 {[%clk 0:01:11.8]} 20... a5 {[%clk
0:01:42.9]} 21. Nd2 {[%clk 0:01:03.3]} 21... Ng5 {[%clk 0:01:38.4]} 22. h4
{[%clk 0:00:59.9]} 22... Ne6 {[%clk 0:01:38.6]} 23. Qg4 {[%clk 0:00:58.9]} 23...
a4 {[%clk 0:01:29.6]} 24. e4 {[%clk 0:00:50.5]} 24... d4 {[%clk 0:01:23.2]} 25.
Nc4 {[%clk 0:00:46.4]} 25... axb3 {[%clk 0:01:21.9]} 26. axb3 {[%clk 0:00:47.3]}
26... Bc7 {[%clk 0:01:18.2]} 27. Ra1 {[%clk 0:00:45.8]} 27... Ra8 {[%clk
0:01:18.2]} 28. Rxa8 {[%clk 0:00:44.3]} 28... Rxa8 {[%clk 0:01:18.3]} 29. Bc1
{[%clk 0:00:44.9]} 29... Ra1 {[%clk 0:01:11.1]} 30. Bd2 {[%clk 0:00:42.8]} 30...
Rxe1+ {[%clk 0:01:10.8]} 31. Bxe1 {[%clk 0:00:43.7]} 31... Qd7 {[%clk
0:00:54.5]} 32. Bd2 {[%clk 0:00:41.8]} 32... Qb5 {[%clk 0:00:54.8]} 33. Qd1
{[%clk 0:00:35.4]} 33... Qa6 {[%clk 0:00:43.8]} 34. e5 {[%clk 0:00:32]} 34... d3
{[%clk 0:00:30]} 35. Qg4 {[%clk 0:00:17.8]} 35... Bxg2 {[%clk 0:00:28.4]} 36.
Kxg2 {[%clk 0:00:18.7]} 36... Qb7+ {[%clk 0:00:28.9]} 37. Qf3 {[%clk 0:00:17]}
37... Qxb3 {[%clk 0:00:29.6]} 38. Qd5 {[%clk 0:00:16.6]} 38... Bxe5 {[%clk
0:00:25.4]} 39. Be3 {[%clk 0:00:08.2]} 39... Bd4 {[%clk 0:00:23.1]} 40. Qa8+
{[%clk 0:00:07.3]} 40... Kh7 {[%clk 0:00:23.3]} 41. Qe4+ {[%clk 0:00:08]} 41...
g6 {[%clk 0:00:23.8]} 42. Nd6 {[%clk 0:00:05.4]} 42... Bxe3 {[%clk 0:00:22.4]}
43. Nxf7 {[%clk 0:00:03.6]} 43... d2 {[%clk 0:00:09.8]} 44. h5 {[%clk
0:00:02.4]} 44... Nf4+ {[%clk 0:00:10.5]} 45. gxf4 {[%clk 0:00:02.4]} 45... Qxf7
{[%clk 0:00:11.3]} 46. Qd3 {[%clk 0:00:01.4]} 46... Bxf4 {[%clk 0:00:11.3]} 0-1

[Event "Early-Titled-Tuesday-Blitz-January-23-2024"]
[Site "Chess.com"]
[Date "2024.01.23"]
[Round "4"]
[White "isaak2009"]
[Black "MusicCityMaster"]
[Result "1-0"]
[WhiteElo "2652"]
[BlackElo "2422"]
[TimeControl "180+1"]
[EndTime "8:38:56 PST"]
[Termination "isaak2009 won on time"]

1. Nf3 {[%clk 0:02:59.9]} 1... d5 {[%clk 0:02:58.1]} 2. g3 {[%clk 0:02:59.8]}
2... c5 {[%clk 0:02:57.6]} 3. Bg2 {[%clk 0:02:59.8]} 3... Nf6 {[%clk 0:02:57.7]}
4. O-O {[%clk 0:02:58.5]} 4... e6 {[%clk 0:02:58.1]} 5. d3 {[%clk 0:02:58.3]}
5... Nc6 {[%clk 0:02:57.2]} 6. Nbd2 {[%clk 0:02:59]} 6... Be7 {[%clk 0:02:56.8]}
7. e4 {[%clk 0:02:59.6]} 7... O-O {[%clk 0:02:56.6]} 8. Re1 {[%clk 0:03:00]}
8... Qc7 {[%clk 0:02:55.3]} 9. e5 {[%clk 0:02:57.9]} 9... Nd7 {[%clk 0:02:55.1]}
10. Qe2 {[%clk 0:02:58.5]} 10... b5 {[%clk 0:02:54.6]} 11. Nf1 {[%clk
0:02:58.9]} 11... a5 {[%clk 0:02:51.8]} 12. Bf4 {[%clk 0:02:59.2]} 12... b4
{[%clk 0:02:48]} 13. h4 {[%clk 0:02:58.4]} 13... Ba6 {[%clk 0:02:45]} 14. Qd2
{[%clk 0:02:52.4]} 14... Nd4 {[%clk 0:02:43.3]} 15. Nxd4 {[%clk 0:02:51.4]}
15... cxd4 {[%clk 0:02:43.5]} 16. Nh2 {[%clk 0:02:51.6]} 16... Rfc8 {[%clk
0:02:42.1]} 17. Re2 {[%clk 0:02:50.5]} 17... a4 {[%clk 0:02:36.6]} 18. Nf3
{[%clk 0:02:32.4]} 18... Qb6 {[%clk 0:02:22.9]} 19. h5 {[%clk 0:02:30.4]} 19...
b3 {[%clk 0:02:18.6]} 20. cxb3 {[%clk 0:02:03.4]} 20... axb3 {[%clk 0:02:17.1]}
21. axb3 {[%clk 0:01:44.3]} 21... Nc5 {[%clk 0:02:10.3]} 22. Nxd4 {[%clk
0:01:05.2]} 22... Nxd3 {[%clk 0:02:04]} 23. Be3 {[%clk 0:00:58.8]} 23... Qb7
{[%clk 0:01:40.9]} 24. Bg5 {[%clk 0:00:35.3]} 24... Bb4 {[%clk 0:01:33.6]} 25.
Qe3 {[%clk 0:00:33.1]} 25... Bc5 {[%clk 0:01:07.7]} 26. Rd2 {[%clk 0:00:28.8]}
26... Bxd4 {[%clk 0:00:51.7]} 27. Qxd4 {[%clk 0:00:28.6]} 27... Nc5 {[%clk
0:00:52]} 28. Ra3 {[%clk 0:00:13.5]} 28... Nxb3 {[%clk 0:00:47.4]} 29. Rxb3
{[%clk 0:00:13]} 29... Qxb3 {[%clk 0:00:47.6]} 30. Qg4 {[%clk 0:00:04.5]} 30...
Rc1+ {[%clk 0:00:42.3]} 31. Kh2 {[%clk 0:00:04.5]} 31... Qc4 {[%clk 0:00:24.8]}
32. Bf4 {[%clk 0:00:02.5]} 32... Rc2 {[%clk 0:00:19]} 33. Rxc2 {[%clk
0:00:02.1]} 33... Qxc2 {[%clk 0:00:18.7]} 34. h6 {[%clk 0:00:03]} 34... Qg6
{[%clk 0:00:18.7]} 35. Qd1 {[%clk 0:00:02.5]} 35... Bc4 {[%clk 0:00:16.9]} 36.
hxg7 {[%clk 0:00:02]} 36... Kxg7 {[%clk 0:00:15.3]} 37. b3 {[%clk 0:00:02.5]}
37... Bd3 {[%clk 0:00:14.3]} 38. Qd2 {[%clk 0:00:03.1]} 38... Ra1 {[%clk
0:00:11]} 39. Bg5 {[%clk 0:00:02.5]} 39... Be4 {[%clk 0:00:09.2]} 40. Bf6+
{[%clk 0:00:02.1]} 40... Kg8 {[%clk 0:00:06.9]} 41. f3 {[%clk 0:00:01.5]} 41...
Qh5+ {[%clk 0:00:06]} 42. Bh4 {[%clk 0:00:02]} 42... Bf5 {[%clk 0:00:03.3]} 43.
Qc3 {[%clk 0:00:01.3]} 43... Kg7 {[%clk 0:00:02.8]} 44. Qxa1 {[%clk 0:00:01.3]}
1-0

[Event "Early-Titled-Tuesday-Blitz-January-23-2024"]
[Site "Chess.com"]
[Date "2024.01.23"]
[Round "4"]
[White "Vazabanga"]
[Black "LeoLV10"]
[Result "1-0"]
[WhiteElo "2668"]
[BlackElo "2431"]
[TimeControl "180+1"]
[EndTime "8:38:58 PST"]
[Termination "Vazabanga won on time"]

1. d4 {[%clk 0:02:59.4]} 1... Nf6 {[%clk 0:03:00.1]} 2. c4 {[%clk 0:02:55.1]}
2... c5 {[%clk 0:03:00.5]} 3. d5 {[%clk 0:02:54.6]} 3... e6 {[%clk 0:03:01.1]}
4. g3 {[%clk 0:02:53]} 4... exd5 {[%clk 0:03:00.2]} 5. cxd5 {[%clk 0:02:53.4]}
5... d6 {[%clk 0:03:00.9]} 6. Nc3 {[%clk 0:02:53]} 6... g6 {[%clk 0:03:01]} 7.
Bg2 {[%clk 0:02:53.6]} 7... Bg7 {[%clk 0:03:01.5]} 8. Nf3 {[%clk 0:02:54.1]}
8... O-O {[%clk 0:02:59.5]} 9. O-O {[%clk 0:02:54.5]} 9... a6 {[%clk 0:02:59.6]}
10. a4 {[%clk 0:02:53.7]} 10... Re8 {[%clk 0:02:53.5]} 11. Nd2 {[%clk
0:02:54.2]} 11... Nbd7 {[%clk 0:02:50.9]} 12. Nc4 {[%clk 0:02:53.3]} 12... Nb6
{[%clk 0:02:51.1]} 13. Na3 {[%clk 0:02:53.3]} 13... Bd7 {[%clk 0:02:31.7]} 14.
Re1 {[%clk 0:02:49.1]} 14... Ng4 {[%clk 0:02:17]} 15. a5 {[%clk 0:02:35.5]}
15... Nc8 {[%clk 0:02:16.8]} 16. h3 {[%clk 0:02:35.2]} 16... Nf6 {[%clk
0:02:11.4]} 17. Nc4 {[%clk 0:02:31.8]} 17... Qc7 {[%clk 0:02:05.5]} 18. e4
{[%clk 0:02:16.3]} 18... b6 {[%clk 0:02:02.7]} 19. e5 {[%clk 0:02:12.6]} 19...
Nh5 {[%clk 0:01:38.8]} 20. axb6 {[%clk 0:02:04.3]} 20... Nxb6 {[%clk 0:01:28.8]}
21. exd6 {[%clk 0:02:04.3]} 21... Rxe1+ {[%clk 0:01:21.3]} 22. Qxe1 {[%clk
0:02:03.7]} 22... Qb8 {[%clk 0:01:22.2]} 23. Qe7 {[%clk 0:01:41.2]} 23... Bf6
{[%clk 0:01:10.3]} 24. Nxb6 {[%clk 0:01:29.9]} 24... Bxe7 {[%clk 0:01:08]} 25.
Nxa8 {[%clk 0:01:08.3]} 25... Qxd6 {[%clk 0:00:57.5]} 26. Ne4 {[%clk 0:00:58.1]}
26... Qb8 {[%clk 0:00:46.1]} 27. Rxa6 {[%clk 0:00:44]} 27... f5 {[%clk
0:00:42.5]} 28. d6 {[%clk 0:00:30.1]} 28... Bd8 {[%clk 0:00:32.4]} 29. Nxc5
{[%clk 0:00:29.7]} 29... Qb5 {[%clk 0:00:23.1]} 30. Be3 {[%clk 0:00:13.1]} 30...
Bc8 {[%clk 0:00:16.6]} 31. Ra2 {[%clk 0:00:10.6]} 31... Qc4 {[%clk 0:00:16]} 32.
b3 {[%clk 0:00:10.3]} 32... Qc3 {[%clk 0:00:12.2]} 33. d7 {[%clk 0:00:08.3]}
33... Bxd7 {[%clk 0:00:12.4]} 34. Nxd7 {[%clk 0:00:08.7]} 34... Qe1+ {[%clk
0:00:12.5]} 35. Kh2 {[%clk 0:00:09.4]} 35... f4 {[%clk 0:00:12.8]} 36. gxf4
{[%clk 0:00:09.1]} 36... Bc7 {[%clk 0:00:12.5]} 37. Ne5 {[%clk 0:00:09.7]} 37...
g5 {[%clk 0:00:06.8]} 38. Nxc7 {[%clk 0:00:08.2]} 38... gxf4 {[%clk 0:00:06.5]}
39. Nd3 {[%clk 0:00:05.4]} 39... Qb1 {[%clk 0:00:05.5]} 40. Nxf4 {[%clk
0:00:04.8]} 40... Nxf4 {[%clk 0:00:04.1]} 41. Bxf4 {[%clk 0:00:04.7]} 41... Qxa2
{[%clk 0:00:04.1]} 42. Bg3 {[%clk 0:00:04.6]} 42... Kg7 {[%clk 0:00:03.2]} 43.
Bd5 {[%clk 0:00:04.8]} 43... Qe2 {[%clk 0:00:02.5]} 44. b4 {[%clk 0:00:05]} 1-0